lending/lending_fUSD_20251106
["ID","MTS","AMOUNT","RATE_DAILY","PERIOD"]
[393259756,1762397448659,-151.0,0.00017535,2]
[393259757,1762397448670,-151.0,0.00017535,2]
[393259758,1762397448679,-151.0,0.00017535,2]
[393259759,1762397448689,-151.0,0.00017535,2]
[393259760,1762397448698,-151.0,0.00017535,2]
[393259761,1762397448708,-168.202191,0.00017535,2]
[393259762,1762397448717,-151.0,0.00017535,2]
[393259763,1762397448726,-283.201929,0.00017535,2]
[393259764,1762397448735,-151.0,0.00017535,2]
[393259765,1762397448744,-283.201929,0.00017535,2]
[393259766,1762397448753,-151.0,0.00017535,2]
[393259767,1762397448762,-283.201929,0.00017535,2]
[393259768,1762397448772,-151.0,0.00017535,2]
[393259769,1762397448781,-151.0,0.00017535,2]
[393259770,1762397448790,-283.201929,0.00017535,2]
[393259771,1762397448799,-152.705216,0.00017535,2]
[393259772,1762397448808,-3642.0,0.00017535,2]
[393259773,1762397448817,-151.0,0.00017535,2]
[393259774,1762397448827,-151.0,0.00017535,2]
[393259775,1762397448837,-151.0,0.00017535,2]
[393259776,1762397448851,-166.950736,0.00017535,2]
[393259777,1762397448861,-166.950736,0.00017535,2]
[393259778,1762397448870,-166.950736,0.00017535,2]
[393259779,1762397448878,-166.950736,0.00017535,2]
[393259780,1762397448889,-154.960781,0.00017535,2]
[393259781,1762397448898,-574.0,0.00017535,2]
[393259782,1762397448907,-3423.0,0.00017535,2]
[393259783,1762397448918,-1315.0,0.00017535,2]
[393259784,1762397448928,-610.868,0.00017535,2]
[393259785,1762397448937,-1596.0,0.00017535,2]
[393259786,1762397448947,-831.0,0.00017535,2]
[393259787,1762397448956,-905.0,0.00017535,2]
[393259788,1762397448966,-837.887,0.00017535,2]
[393259789,1762397448975,-1308.715,0.00017535,2]
[393259790,1762397448985,-2159.448,0.00017535,2]
[393259791,1762397448994,-6658.0,0.00017535,2]
[393259792,1762397449003,-6475.0,0.00017535,2]
[393259793,1762397449012,-562.431,0.00017535,2]
[393259794,1762397449022,-794.96,0.00017538,2]
[393259795,1762397449031,-200.0,0.00017557,2]
[393259796,1762397449040,-200.0,0.00017558,2]
[393259797,1762397449049,-485.0,0.00017565,2]
[393259798,1762397449061,-344.25765138,0.00017565,2]
[393259799,1762397449070,-14282.41959783,0.00017565,2]
[393259800,1762397449080,-8957.92825633,0.00017565,2]
[393259801,1762397449089,-253.129001,0.00017565,2]
[393259802,1762397449099,-253.129001,0.00017565,2]
[393259803,1762397449109,-253.129001,0.00017565,2]
[393259804,1762397449119,-151.0,0.00017565,2]
[393259805,1762397449128,-253.129001,0.00017565,2]
[393259806,1762397449138,-151.0,0.00017565,2]
[393259807,1762397449147,-151.0,0.00017565,2]
[393259808,1762397449157,-151.0,0.00017565,2]
[393259809,1762397449167,-165.173443,0.00017565,2]
[393259810,1762397449177,-151.0,0.00017565,2]
[393259811,1762397449186,-151.0,0.00017565,2]
[393259812,1762397449196,-151.0,0.00017565,2]
[393259813,1762397449205,-151.0,0.00017565,2]
[393259814,1762397449216,-151.0,0.00017565,2]
[393259815,1762397449227,-151.0,0.00017565,2]
[393259816,1762397449237,-476.442342,0.00017565,2]
[393259817,1762397449247,-476.442342,0.00017565,2]
[393259818,1762397449256,-476.442342,0.00017565,2]
[393259819,1762397449265,-476.442342,0.00017565,2]
[393259820,1762397449275,-151.0,0.00017565,2]
[393259821,1762397449284,-151.0,0.00017565,2]
[393259822,1762397449295,-151.0,0.00017565,2]
[393259823,1762397449307,-151.0,0.00017565,2]
[393259824,1762397449317,-151.0,0.00017565,2]
[393259825,1762397449327,-151.0,0.00017565,2]
[393259826,1762397449338,-1813.452705,0.00017565,2]
[393259827,1762397449348,-1813.452705,0.00017565,2]
[393259828,1762397449358,-151.0,0.00017565,2]
[393259829,1762397449367,-151.0,0.00017565,2]
[393259830,1762397449376,-1813.452705,0.00017565,2]
[393259831,1762397449386,-151.0,0.00017565,2]
[393259832,1762397449396,-1813.452705,0.00017565,2]
[393259833,1762397449405,-234.530472,0.00017565,2]
[393259834,1762397449417,-234.530472,0.00017565,2]
[393259835,1762397449427,-234.530472,0.00017565,2]
[393259836,1762397449437,-151.0,0.00017565,2]
[393259837,1762397449447,-234.530472,0.00017565,2]
[393259838,1762397449456,-151.0,0.00017565,2]
[393259839,1762397449466,-692.200381,0.00017565,2]
[393259840,1762397449477,-692.200381,0.00017565,2]
[393259841,1762397449488,-692.200381,0.00017565,2]
[393259842,1762397449497,-692.200381,0.00017565,2]
[393259843,1762397449507,-164.165623,0.00017565,2]
[393259844,1762397449517,-266.930809,0.00017565,2]
[393259845,1762397449526,-152.369643,0.00017565,2]
[393259846,1762397449535,-151.0,0.00017565,2]
[393259847,1762397449544,-151.0,0.00017565,2]
[393259848,1762397449554,-151.0,0.00017565,2]
[393259849,1762397449563,-151.0,0.00017565,2]
[393259850,1762397449572,-245.073627,0.00017565,2]
[393259851,1762397449582,-151.0,0.00017565,2]
[393259852,1762397449591,-310.677948,0.00017565,2]
[393259853,1762397449601,-162.129983,0.00017565,2]
[393259854,1762397449611,-310.677948,0.00017565,2]
[393259855,1762397449620,-151.0,0.00017565,2]
[393259856,1762397449774,-310.677948,0.00017565,2]
[393259857,1762397449785,-310.677948,0.00017565,2]
[393259858,1762397449794,-151.0,0.00017565,2]
[393259859,1762397449804,-151.0,0.00017565,2]
[393259861,1762397449814,-1344.289614,0.00017565,2]
[393259862,1762397449824,-151.523274,0.00017565,2]
[393259863,1762397449834,-1344.289614,0.00017565,2]
[393259864,1762397449846,-151.0,0.00017565,2]
[393259865,1762397449856,-389.359871,0.00017565,2]
[393259866,1762397449866,-1344.289614,0.00017565,2]
[393259867,1762397449876,-151.0,0.00017565,2]
[393259868,1762397449886,-151.0,0.00017565,2]
[393259869,1762397449897,-389.359871,0.00017565,2]
[393259870,1762397449907,-151.0,0.00017565,2]
[393259871,1762397449918,-163.152806,0.00017565,2]
[393259872,1762397449928,-1344.289614,0.00017565,2]
[393259873,1762397449938,-237.964997,0.00017565,2]
[393259874,1762397449948,-151.0,0.00017565,2]
[393259875,1762397449958,-389.359871,0.00017565,2]
[393259876,1762397449967,-151.0,0.00017565,2]
[393259877,1762397449977,-389.359871,0.00017565,2]
[393259878,1762397449986,-151.0,0.00017565,2]
[393259879,1762397449996,-151.0,0.00017565,2]
[393259880,1762397450005,-151.0,0.00017565,2]
[393259881,1762397450015,-660.228099,0.00017565,2]
[393259882,1762397450025,-157.071528,0.00017565,2]
[393259883,1762397450034,-660.228099,0.00017565,2]
[393259884,1762397450044,-245.7,0.00017566,2]
[393259886,1762397450053,-385.0033595,0.00017569,2]
[393259887,1762397450063,-485.0,0.0001758,2]
[393259888,1762397450072,-162.64913491,0.00017595,2]
[393259889,1762397450082,-620.6246043,0.000176,2]
[393259890,1762397450092,-1593.42661219,0.000176,2]
[393259891,1762397450102,-2400.0,0.000176,6]
[393259892,1762397450111,-1000.0,0.00017603,2]
[393259893,1762397450120,-325.05520286,0.00017603,2]
[393259894,1762397450130,-1000.0,0.00017603,2]
[393259895,1762397450140,-1000.0,0.00017603,2]
[393259896,1762397450150,-1000.0,0.00017603,2]
[393259897,1762397450162,-349.30178506,0.00017603,2]
[393259898,1762397450173,-500.0,0.00017612,2]
[393259899,1762397450183,-780.0,0.00017612,2]
[393259900,1762397450192,-500.0,0.00017612,2]
[393259901,1762397450202,-1000.0,0.00017618,2]
[393259902,1762397450212,-1000.0,0.00017618,2]
[393259903,1762397450222,-1000.0,0.00017618,2]
[393259904,1762397450232,-331.61,0.00017618,2]
[393259905,1762397450242,-505.65724167,0.00017644,2]
[393259906,1762397450251,-184.95051671,0.00017646,2]
[393259907,1762397450261,-163.0,0.00017671,2]
[393259908,1762397450270,-511.61246005,0.00017673,2]
[393259909,1762397450282,-500.0,0.00017673,2]
[393259910,1762397450292,-500.0,0.00017673,2]
[393259911,1762397450302,-500.72472817,0.00017673,2]
[393259912,1762397450312,-500.0,0.00017673,2]
[393259913,1762397450321,-500.0,0.00017673,2]
[393259914,1762397450331,-500.56143844,0.00017673,2]
[393259915,1762397450340,-281.59783636,0.00017673,2]
[393259916,1762397450350,-503.07369237,0.00017673,2]
[393259917,1762397450359,-157.49163483,0.00017673,2]
[393259918,1762397450369,-506.28852507,0.00017673,2]
[393259919,1762397450378,-183.4285495,0.00017673,2]
[393259920,1762397450387,-500.0,0.00017673,2]
[393259921,1762397450396,-220.37778316,0.00017673,2]
[393259922,1762397450406,-500.0,0.00017673,2]
[393259923,1762397450415,-500.0,0.00017673,2]
[393259924,1762397450424,-419.7902568,0.00017673,2]
[393259925,1762397450434,-385.0033595,0.00017679,2]
[393259926,1762397450443,-380.24195407,0.00017684,2]
[393259927,1762397450452,-1627.51766515,0.0001769,2]
[393259928,1762397450461,-500.0,0.00017695,2]
[393259929,1762397450471,-5968.30001118,0.00017695,2]
[393259930,1762397450481,-500.0,0.00017695,2]
[393259931,1762397450491,-500.0,0.00017695,2]
[393259932,1762397450501,-500.0,0.00017695,2]
[393259933,1762397450511,-500.0,0.00017695,2]
[393259934,1762397450520,-500.0,0.00017699,2]
[393259935,1762397450530,-500.0,0.00017699,2]
[393259936,1762397450540,-500.0,0.00017699,2]
[393259937,1762397450551,-395.42036516,0.00017699,2]
[393259938,1762397450560,-500.0,0.00017699,2]
[393259939,1762397450570,-308.02145219,0.00017699,2]
[393259940,1762397450579,-300.0,0.00017699,2]
[393259941,1762397450589,-666.0,0.00017699,2]
[393259942,1762397450598,-151.0,0.00017699,2]
[393259943,1762397450607,-151.0,0.00017699,2]
[393259944,1762397450618,-162.089342,0.00017699,2]
[393259945,1762397450628,-151.0,0.00017699,2]
[393259946,1762397450638,-151.0,0.00017699,2]
[393259947,1762397450650,-166.259986,0.00017699,2]
[393259948,1762397450672,-151.0,0.00017699,2]
[393259949,1762397450687,-151.0,0.00017699,2]
[393259950,1762397450698,-151.0,0.00017699,2]
[393259951,1762397450709,-151.0,0.00017699,2]
[393259952,1762397450721,-151.0,0.00017699,2]
[393259953,1762397450732,-191.135555,0.00017699,2]
[393259954,1762397450742,-191.135555,0.00017699,2]
[393259955,1762397450753,-151.0,0.00017699,2]
[393259956,1762397450762,-191.135555,0.00017699,2]
[393259957,1762397450772,-191.135555,0.00017699,2]
[393259958,1762397450782,-300.0,0.00017699,3]
[393259959,1762397450791,-300.0,0.00017699,3]
[393259960,1762397450803,-300.0,0.00017699,3]
[393259961,1762397450812,-300.0,0.00017699,3]
[393259962,1762397450822,-300.0,0.00017699,3]
[393259963,1762397450834,-151.0,0.00017699,2]
[393259964,1762397450848,-300.0,0.00017699,2]
[393259965,1762397450859,-670.73641906,0.00017699,2]
[393259966,1762397450869,-523.13811093,0.00017699,2]
[393259967,1762397450879,-500.0,0.00017699,2]
[393259968,1762397450890,-500.0,0.00017699,2]
[393259969,1762397450901,-500.0,0.00017699,2]
[393259970,1762397450911,-500.0,0.00017699,2]
[393259971,1762397450922,-500.0,0.00017699,2]
[393259972,1762397450932,-500.0,0.00017699,2]
[393259973,1762397450941,-500.0,0.00017699,2]
[393259974,1762397450950,-500.0,0.00017699,2]
[393259975,1762397450960,-500.0,0.00017699,2]
[393259976,1762397450970,-149411.22745232,0.000177,2]
[393259977,1762397450981,-1566011.65603931,0.000177,2]
[393259978,1762397450991,-151.0,0.000177,2]
[393259979,1762397451003,-151.0,0.000177,2]
[393259980,1762397451023,-151.0,0.000177,2]
[393259981,1762397451032,-151.0,0.000177,2]
[393259982,1762397451043,-157.37238,0.000177,2]
[393259983,1762397451053,-167.167131,0.000177,2]
[393259984,1762397451063,-151.0,0.000177,2]
[393259985,1762397451074,-151.0,0.000177,2]
[393259986,1762397451083,-151.0,0.000177,2]
[393259987,1762397451092,-191.135555,0.000177,2]
[393259988,1762397451101,-191.135555,0.000177,2]
[393259989,1762397451110,-151.0,0.000177,2]
[393259990,1762397451119,-191.135555,0.000177,2]
[393259991,1762397451128,-191.135555,0.000177,2]
[393259992,1762397451138,-151.0,0.000177,2]
[393259993,1762397451147,-253.129001,0.000177,2]
[393259994,1762397451156,-253.129001,0.000177,2]
[393259995,1762397451166,-253.129001,0.000177,2]
[393259996,1762397451175,-253.129001,0.000177,2]
[393259997,1762397451184,-253.129001,0.000177,2]
[393259998,1762397451193,-253.129001,0.000177,2]
[393259999,1762397451203,-151.0,0.000177,2]
[393260000,1762397451211,-151.0,0.000177,2]
[393260001,1762397451221,-253.129001,0.000177,2]
[393260002,1762397451230,-253.128993,0.000177,2]
[393260003,1762397451239,-162.748782,0.000177,2]
[393260004,1762397451248,-151.0,0.000177,2]
[393260005,1762397451257,-151.0,0.000177,2]
[393260006,1762397451266,-151.0,0.000177,2]
[393260007,1762397451275,-282.748482,0.000177,2]
[393260008,1762397451285,-151.0,0.000177,2]
[393260009,1762397451293,-175.620212,0.000177,2]
[393260010,1762397451303,-151.0,0.000177,2]
[393260011,1762397451312,-151.0,0.000177,2]
[393260012,1762397451321,-151.0,0.000177,2]
[393260013,1762397451330,-2400.0,0.000177,6]
[393260014,1762397451339,-151.0,0.000177,2]
[393260015,1762397451348,-151.0,0.000177,2]
[393260016,1762397451358,-160.108682,0.000177,2]
[393260017,1762397451367,-476.442342,0.000177,2]
[393260018,1762397451376,-476.442342,0.000177,2]
[393260019,1762397451385,-476.442342,0.000177,2]
[393260020,1762397451394,-476.442342,0.000177,2]
[393260021,1762397451403,-476.442342,0.000177,2]
[393260022,1762397451412,-476.442342,0.000177,2]
[393260023,1762397451421,-476.442342,0.000177,2]
[393260024,1762397451430,-476.44235,0.000177,2]
[393260025,1762397451439,-151.0,0.000177,2]
[393260026,1762397451447,-175.011809,0.000177,2]
[393260027,1762397451457,-151.0,0.000177,2]
[393260028,1762397451466,-151.0,0.000177,2]
[393260029,1762397451475,-151.0,0.000177,2]
[393260030,1762397451484,-151.0,0.000177,2]
[393260031,1762397451493,-155.625396,0.000177,2]
[393260032,1762397451502,-169.26098,0.000177,2]
[393260033,1762397451511,-151.0,0.000177,2]
[393260034,1762397451520,-151.0,0.000177,2]
[393260035,1762397451529,-151.0,0.000177,2]
[393260036,1762397451538,-165.676348,0.000177,2]
[393260037,1762397451549,-1813.452705,0.000177,2]
[393260038,1762397451558,-1813.452705,0.000177,2]
[393260039,1762397451567,-1813.452705,0.000177,2]
[393260040,1762397451576,-1813.452705,0.000177,2]
[393260041,1762397451585,-151.0,0.000177,2]
[393260042,1762397451595,-167.426808,0.000177,2]
[393260043,1762397451604,-151.0,0.000177,2]
[393260044,1762397451615,-1813.452705,0.000177,2]
[393260045,1762397451624,-1813.452705,0.000177,2]
[393260046,1762397451634,-151.0,0.000177,2]
[393260047,1762397451644,-1813.452705,0.000177,2]
[393260048,1762397451654,-1813.452713,0.000177,2]
[393260049,1762397451665,-234.530472,0.000177,2]
[393260050,1762397451676,-234.530472,0.000177,2]
[393260051,1762397451686,-161.181508,0.000177,2]
[393260052,1762397451696,-234.530472,0.000177,2]
[393260053,1762397451707,-234.530472,0.000177,2]
[393260054,1762397451717,-234.530472,0.000177,2]
[393260055,1762397451727,-234.530472,0.000177,2]
[393260056,1762397451737,-151.0,0.000177,2]
[393260057,1762397451747,-151.0,0.000177,2]
[393260058,1762397451755,-234.530472,0.000177,2]
[393260059,1762397451765,-234.53048,0.000177,2]
[393260060,1762397451774,-151.0,0.000177,2]
[393260061,1762397451782,-692.200381,0.000177,2]
[393260062,1762397451791,-151.0,0.000177,2]
[393260063,1762397451800,-692.200381,0.000177,2]
[393260064,1762397451809,-692.200381,0.000177,2]
[393260065,1762397451818,-692.200381,0.000177,2]
[393260066,1762397451827,-692.200381,0.000177,2]
[393260067,1762397451837,-692.200381,0.000177,2]
[393260068,1762397451850,-692.200381,0.000177,2]
[393260069,1762397451859,-692.200374,0.000177,2]
[393260070,1762397451868,-151.0,0.000177,2]
[393260071,1762397451877,-151.0,0.000177,2]
[393260072,1762397451888,-151.0,0.000177,2]
[393260073,1762397451896,-151.0,0.000177,2]
[393260074,1762397451906,-151.0,0.000177,2]
[393260075,1762397451916,-151.0,0.000177,2]
[393260076,1762397451926,-151.0,0.000177,2]
[393260077,1762397451935,-151.0,0.000177,2]
[393260078,1762397451944,-151.0,0.000177,2]
[393260079,1762397451953,-180.000478,0.000177,2]
[393260080,1762397451962,-154.254113,0.000177,2]
[393260081,1762397451971,-151.0,0.000177,2]
[393260082,1762397451980,-151.0,0.000177,2]
[393260083,1762397451988,-151.0,0.000177,2]
[393260084,1762397451997,-151.0,0.000177,2]
[393260085,1762397452006,-151.0,0.000177,2]
[393260086,1762397452015,-151.0,0.000177,2]
[393260087,1762397452025,-151.0,0.000177,2]
[393260088,1762397452034,-151.0,0.000177,2]
[393260089,1762397452043,-283.201929,0.000177,2]
[393260090,1762397452052,-283.201929,0.000177,2]
[393260091,1762397452062,-151.0,0.000177,2]
[393260092,1762397452071,-151.0,0.000177,2]
[393260093,1762397452080,-283.201929,0.000177,2]
[393260094,1762397452089,-283.201929,0.000177,2]
[393260095,1762397452099,-151.0,0.000177,2]
[393260096,1762397452108,-151.0,0.000177,2]
[393260097,1762397452117,-283.201929,0.000177,2]
[393260098,1762397452125,-151.0,0.000177,2]
[393260099,1762397452135,-283.201929,0.000177,2]
[393260100,1762397452144,-151.0,0.000177,2]
[393260101,1762397452153,-283.201929,0.000177,2]
[393260102,1762397452162,-283.201929,0.000177,2]
[393260103,1762397452171,-151.0,0.000177,2]
[393260104,1762397452180,-244.075825,0.000177,2]
[393260105,1762397452189,-151.0,0.000177,2]
[393260106,1762397452199,-151.0,0.000177,2]
[393260107,1762397452246,-151.0,0.000177,2]
[393260108,1762397452256,-151.0,0.000177,2]
[393260109,1762397452265,-151.0,0.000177,2]
[393260110,1762397452274,-182.865907,0.000177,2]
[393260111,1762397452283,-151.0,0.000177,2]
[393260112,1762397452292,-151.0,0.000177,2]
[393260113,1762397452301,-151.0,0.000177,2]
[393260114,1762397452310,-151.0,0.000177,2]
[393260115,1762397452319,-151.0,0.000177,2]
[393260116,1762397452328,-151.0,0.000177,2]
[393260117,1762397452338,-151.0,0.000177,2]
[393260118,1762397452347,-151.0,0.000177,2]
[393260119,1762397452356,-151.0,0.000177,2]
[393260120,1762397452365,-310.677948,0.000177,2]
[393260121,1762397452374,-310.677948,0.000177,2]
[393260122,1762397452383,-310.677948,0.000177,2]
[393260123,1762397452395,-310.677948,0.000177,2]
[393260124,1762397452405,-151.0,0.000177,2]
[393260125,1762397452414,-151.0,0.000177,2]
[393260126,1762397452424,-310.677948,0.000177,2]
[393260127,1762397452433,-310.677948,0.000177,2]
[393260128,1762397452443,-310.677948,0.000177,2]
[393260129,1762397452453,-310.677948,0.000177,2]
[393260130,1762397452462,-166.950736,0.000177,2]
[393260131,1762397452471,-166.950736,0.000177,2]
[393260132,1762397452480,-151.0,0.000177,2]
[393260133,1762397452489,-151.0,0.000177,2]
[393260134,1762397452499,-166.950736,0.000177,2]
[393260135,1762397452507,-166.950736,0.000177,2]
[393260136,1762397452517,-151.0,0.000177,2]
[393260137,1762397452527,-151.0,0.000177,2]
[393260138,1762397452536,-1344.289614,0.000177,2]
[393260139,1762397452545,-1344.289614,0.000177,2]
[393260140,1762397452554,-166.950736,0.000177,2]
[393260141,1762397452563,-166.950736,0.000177,2]
[393260142,1762397452572,-1344.289614,0.000177,2]
[393260143,1762397452582,-1344.289614,0.000177,2]
[393260144,1762397452591,-151.0,0.000177,2]
[393260145,1762397452600,-151.0,0.000177,2]
[393260146,1762397452609,-389.359871,0.000177,2]
[393260147,1762397452618,-166.950736,0.000177,2]
[393260148,1762397452627,-389.359871,0.000177,2]
[393260149,1762397452635,-166.950736,0.000177,2]
[393260150,1762397452644,-1344.289614,0.000177,2]
[393260151,1762397452654,-1344.289614,0.000177,2]
[393260152,1762397452664,-151.0,0.000177,2]
[393260153,1762397452673,-151.0,0.000177,2]
[393260154,1762397452682,-389.359871,0.000177,2]
[393260155,1762397452691,-151.0,0.000177,2]
[393260156,1762397452700,-151.0,0.000177,2]
[393260157,1762397452709,-151.0,0.000177,2]
[393260158,1762397452718,-389.359871,0.000177,2]
[393260159,1762397452726,-162.206685,0.000177,2]
[393260160,1762397452736,-1344.289614,0.000177,2]
[393260161,1762397452745,-1344.289614,0.000177,2]
[393260162,1762397452753,-151.0,0.000177,2]
[393260163,1762397452762,-389.359871,0.000177,2]
[393260164,1762397452771,-151.0,0.000177,2]
[393260165,1762397452780,-389.359871,0.000177,2]
[393260166,1762397452789,-268.977288,0.000177,2]
[393260167,1762397452797,-389.359871,0.000177,2]
[393260168,1762397452806,-151.0,0.000177,2]
[393260169,1762397452816,-389.359871,0.000177,2]
[393260170,1762397452824,-153.934286,0.000177,2]
[393260171,1762397452834,-151.0,0.000177,2]
[393260172,1762397452847,-660.228099,0.000177,2]
[393260173,1762397452856,-660.228099,0.000177,2]
[393260174,1762397452864,-1000.0,0.0001771,2]
[393260175,1762397452873,-150.99,0.00017728,2]
[393260176,1762397452883,-9999.99,0.00017728,2]
[393260177,1762397452892,-500.0,0.00017732,2]
[393260178,1762397452901,-500.0,0.00017732,2]
[393260179,1762397452909,-500.0,0.00017732,2]
[393260180,1762397452922,-344.25765138,0.00017732,2]
[393260181,1762397452932,-14282.41959783,0.00017732,2]
[393260182,1762397452941,-8957.92825633,0.00017732,2]
[393260183,1762397452950,-336.763445,0.00017733,3]
[393260184,1762397452960,-297.732626,0.00017733,3]
[393260185,1762397452971,-500.0,0.00017749,2]
[393260186,1762397452980,-780.0,0.00017749,2]
[393260187,1762397452990,-500.0,0.00017749,2]
[393260188,1762397453000,-259.0,0.0001777,2]
[393260189,1762397453011,-209.0,0.0001777,2]
[393260190,1762397453022,-250.0,0.0001777,2]
[393260191,1762397453032,-250.0,0.0001777,2]
[393260192,1762397453042,-206.254,0.0001777,2]
[393260193,1762397453052,-215.863,0.0001777,2]
[393260194,1762397453063,-152.522,0.0001777,2]
[393260195,1762397453075,-250.0,0.0001777,2]
[393260196,1762397453085,-261.248,0.0001777,2]
[393260197,1762397453096,-188.853,0.0001777,2]
[393260198,1762397453106,-162.078,0.0001777,2]
[393260199,1762397453116,-250.0,0.0001777,2]
[393260200,1762397453126,-209.824,0.0001777,2]
[393260201,1762397453135,-220.684,0.0001777,2]
[393260202,1762397453145,-336.763445,0.00017776,3]
[393260203,1762397453155,-297.732626,0.00017776,3]
[393260204,1762397453165,-2500.0,0.00017777,3]
[393260206,1762397453180,-2500.0,0.00017777,3]
[393260207,1762397453190,-2500.0,0.00017786,3]
[393260208,1762397453200,-2500.0,0.00017786,3]
[393260209,1762397453209,-385.0033595,0.0001779,2]
[393260210,1762397453219,-2500.0,0.00017794,3]
[393260211,1762397453229,-2500.0,0.00017794,3]
[393260212,1762397453239,-575.96,0.00017799,2]
[393260213,1762397453248,-500.0,0.00017799,2]
[393260214,1762397453257,-500.0,0.00017799,2]
[393260215,1762397453266,-500.0,0.00017799,2]
[393260216,1762397453276,-500.0,0.00017799,2]
[393260217,1762397453285,-288.84967882,0.00017799,2]
[393260218,1762397453294,-500.0,0.00017799,2]
[393260219,1762397453303,-106452.13298581,0.000178,2]
[393260220,1762397453507,-500.0,0.00015942,2]
[393260221,1762397453518,-168.28701696,0.00016438,2]
[393260222,1762397453528,-338574.00278999,0.000178,2]
[393260223,1762397453538,-712.36204596,0.000178,2]
[393260224,1762397453548,-650.0419023,0.000178,2]
[393260225,1762397453558,-151.0,0.000178,2]
[393260226,1762397453568,-151.0,0.000178,2]
[393260227,1762397453578,-151.0,0.000178,2]
[393260228,1762397453588,-151.0,0.000178,2]
[393260229,1762397453598,-151.0,0.000178,2]
[393260230,1762397453608,-151.0,0.000178,2]
[393260231,1762397453619,-191.135555,0.000178,2]
[393260232,1762397453630,-151.0,0.000178,2]
[393260233,1762397453641,-191.135555,0.000178,2]
[393260234,1762397453651,-151.0,0.000178,2]
[393260235,1762397453661,-191.135555,0.000178,2]
[393260236,1762397453674,-191.135547,0.000178,2]
[393260237,1762397453684,-151.0,0.000178,2]
[393260238,1762397453694,-151.0,0.000178,2]
[393260239,1762397453704,-151.0,0.000178,2]
[393260240,1762397453715,-172.114768,0.000178,2]
[393260241,1762397453725,-151.0,0.000178,2]
[393260242,1762397453734,-151.0,0.000178,2]
[393260243,1762397453744,-151.0,0.000178,2]
[393260244,1762397453755,-156.34892,0.000178,2]
[393260245,1762397453764,-151.0,0.000178,2]
[393260246,1762397453774,-283.201929,0.000178,2]
[393260247,1762397453784,-151.0,0.000178,2]
[393260248,1762397453794,-283.201929,0.000178,2]
[393260249,1762397453804,-151.0,0.000178,2]
[393260250,1762397453813,-283.201929,0.000178,2]
[393260251,1762397453823,-244.699213,0.000178,2]
[393260252,1762397453831,-283.201924,0.000178,2]
[393260253,1762397453841,-167.698014,0.000178,2]
[393260254,1762397453854,-151.0,0.000178,2]
[393260255,1762397453864,-151.0,0.000178,2]
[393260256,1762397453874,-151.0,0.000178,2]
[393260257,1762397453885,-151.0,0.000178,2]
[393260258,1762397453895,-151.0,0.000178,2]